fUSD/lending_fUSD_20260116
["ID","MTS","AMOUNT","RATE_DAILY","PERIOD"]
[402123263,1768531843831,-2845.0,0.00018183,2]
[402123265,1768531843840,-2845.0,0.00018208,2]
[402123267,1768531843849,-2845.0,0.00018218,2]
[402123269,1768531843859,-757.8,0.0001825,2]
[402123271,1768531843868,-776.58983529,0.00018256,2]
[402123273,1768531843877,-2845.0,0.00018257,2]
[402123275,1768531843886,-2845.0,0.00018259,2]
[402123277,1768531843896,-1000.0,0.00018264,2]
[402123279,1768531843904,-2845.0,0.00018266,2]
[402123281,1768531843913,-2845.0,0.00018281,2]
[402123283,1768531843923,-2845.0,0.00018305,2]
[402123285,1768531843936,-4769.0,0.00018338,2]
[402123287,1768531843946,-88357.37,0.00018356,2]
[402123289,1768531843955,-2845.0,0.00018366,2]
[402123291,1768531843964,-2845.0,0.00018422,2]
[402123293,1768531843974,-1000.0,0.00018432,2]
[402123295,1768531843983,-1580.33,0.00018438,2]
[402123297,1768531843993,-3000.0,0.00018512,2]
[402123299,1768531844003,-2505.64685412,0.00018512,2]
[402123301,1768531844013,-2351.0,0.00018538,2]
[402123303,1768531844022,-2845.0,0.00018578,2]
[402123305,1768531844031,-2845.0,0.00018596,2]
[402123307,1768531844040,-900.0,0.00018633,2]
[402123309,1768531844050,-2845.0,0.00018651,2]
[402123311,1768531844059,-4769.0,0.00018671,2]
[402123313,1768531844068,-2845.0,0.00018706,2]
[402123315,1768531844077,-1580.33,0.00018712,2]
[402123317,1768531844086,-247.82,0.000188,2]
[402123319,1768531844095,-151.5,0.000188,2]
[402123321,1768531844104,-151.5,0.000188,2]
[402123323,1768531844113,-151.5,0.000188,2]
[402123325,1768531844122,-151.5,0.000188,2]
[402123327,1768531844131,-151.5,0.000188,2]
[402123329,1768531844140,-151.5,0.000188,2]
[402123331,1768531844149,-151.5,0.000188,2]
[402123333,1768531844158,-151.5,0.000188,2]
[402123335,1768531844169,-151.5,0.000188,2]
[402123337,1768531844178,-151.5,0.000188,2]
[402123339,1768531844187,-151.5,0.000188,2]
[402123340,1768531844196,-151.5,0.000188,2]
[402123342,1768531844205,-151.5,0.000188,2]
[402123344,1768531844214,-151.5,0.000188,2]
[402123346,1768531844224,-151.5,0.000188,2]
[402123348,1768531844233,-151.5,0.000188,2]
[402123350,1768531844242,-151.5,0.000188,2]
[402123352,1768531844251,-151.5,0.000188,2]
[402123354,1768531844260,-151.5,0.000188,2]
[402123356,1768531844269,-151.5,0.000188,2]
[402123358,1768531844279,-151.5,0.000188,2]
[402123360,1768531844288,-151.5,0.000188,2]
[402123362,1768531844298,-151.5,0.000188,2]
[402123364,1768531844307,-151.5,0.000188,2]
[402123366,1768531844316,-151.5,0.000188,2]
[402123368,1768531844325,-151.5,0.000188,2]
[402123370,1768531844334,-151.5,0.000188,2]
[402123372,1768531844343,-151.5,0.000188,2]
[402123374,1768531844352,-151.5,0.000188,2]
[402123376,1768531844362,-258.82,0.00018869,2]
[402123379,1768531844372,-4769.0,0.00018919,2]
[402123380,1768531844383,-1580.33,0.00018986,2]
[402123382,1768531844392,-53593.94059722,0.00019,2]
[402123384,1768531844401,-5162.89759442,0.00019,2]
[402123386,1768531844410,-2259.99376713,0.00019,2]
[402123388,1768531844421,-300.0,0.00019,2]
[402123390,1768531844430,-500.0,0.00019041,2]
[402123392,1768531844439,-1473.0,0.00019048,2]
[402123394,1768531844448,-506.75696579,0.0001906,2]
[402123396,1768531844458,-253.0509222,0.00019154,2]
[402123399,1768531844468,-250.0,0.00019234,2]
[402123400,1768531844477,-1580.33,0.0001926,2]
[402123403,1768531844487,-247.82,0.000194,3]
[402123405,1768531844496,-1580.37825745,0.00019534,2]
[402123407,1768531844506,-258.82,0.00019727,2]
[402123409,1768531844514,-501.50443962,0.0001974,2]
[402123410,1768531844524,-2000.02137037,0.0002,2]
[402123413,1768531844534,-174.51123852,0.00020067,2]
[402123415,1768531844543,-1185.87,0.00020145,2]
[402123417,1768531844552,-9999.99,0.00020145,2]
[402123418,1768531844561,-8977.36,0.00020145,2]
[402123420,1768531844570,-1000.0,0.00020293,2]
[402123423,1768531844580,-3292.0,0.00020385,2]
[402123425,1768531844589,-757.8,0.00020426,2]
[402123426,1768531844598,-1510.0,0.00020452,2]
[402123428,1768531844608,-376.15700837,0.00020584,2]
[402123431,1768531844617,-258.82,0.00020584,2]
[402123433,1768531844626,-40388.42925099,0.000209,30]
[402123435,1768531844636,-776.58983529,0.00021179,2]
[402123437,1768531844646,-500.0,0.0002126,2]
[402123439,1768531844655,-216.73549128,0.00021423,2]
[402123441,1768531844665,-258.82,0.00021442,2]
[402123443,1768531844674,-5000.0,0.00021918,2]
[402123445,1768531844684,-430.5,0.00021948,2]
[402123447,1768531844693,-258.82,0.000223,2]
[402123449,1768531844702,-1000.0,0.00022322,2]
[402123451,1768531844711,-4609.0,0.00022416,2]
[402123453,1768531844721,-757.8,0.00022603,2]
[402123455,1768531844730,-247.82,0.000229,4]
[402123457,1768531844739,-2554.72,0.00022974,2]
[402123459,1768531844748,-253.0509222,0.00022975,2]
[402123461,1768531844758,-500.0,0.00023151,2]
[402123463,1768531844766,-258.82,0.00023157,2]
[402123465,1768531844776,-5139.0,0.00023863,2]
[402123467,1768531844784,-776.58983529,0.00024101,2]
[402123469,1768531844793,-1000.0,0.00024352,2]
[402123471,1768531844802,-1600.0,0.00024386,2]
[402123473,1768531844812,-6453.0,0.00024648,2]
[402123475,1768531844824,-1000.0,0.00024658,2]
[402123477,1768531844834,-500.0,0.00024658,2]
[402123479,1768531844843,-314.20615571,0.00024658,2]
[402123481,1768531844852,-757.8,0.00024779,2]
[402123483,1768531844861,-52216.6654542,0.000248,2]
[402123485,1768531844871,-403.0,0.000248,2]
[402123487,1768531844880,-121625.625574,0.000249,2]
[402123489,1768531844890,-151.0,0.000249,7]
[402123491,1768531844899,-217.320917,0.000249,7]
[402123493,1768531844909,-380.509999,0.000249,7]
[402123495,1768531844919,-380.509999,0.000249,7]
[402123497,1768531844928,-380.509999,0.000249,7]
[402123499,1768531844939,-380.509999,0.000249,7]
[402123501,1768531844949,-151.0,0.000249,7]
[402123502,1768531844957,-151.0,0.000249,7]
[402123504,1768531844967,-151.0,0.000249,7]
[402123507,1768531844979,-151.0,0.000249,7]
[402123508,1768531844990,-216.73549128,0.00024946,2]
[402123509,1768531845000,-314.22,0.00026102,2]
[402123511,1768531845010,-257.0,0.000263,2]
[402123513,1768531845019,-5463.0,0.000264,5]
[402123515,1768531845028,-200.0,0.00026729,2]
[402123517,1768531845038,-253.0509222,0.00026795,2]
[402123519,1768531845048,-757.8,0.00026956,2]
[402123521,1768531845057,-776.58983529,0.00027023,2]
[402123523,1768531845066,-3554.0,0.00027104,2]
[402123525,1768531845076,-513.0,0.00027137,2]
[402123527,1768531845085,-500.0,0.00027397,20]
[402123529,1768531845094,-150.0,0.000276,30]
[402123530,1768531845103,-2135.22094602,0.000284,2]
[402123531,1768531845112,-216.73549128,0.0002847,2]
[402123532,1768531845122,-4847.822,0.00028591,2]
[402123533,1768531845130,-569.897,0.00028591,2]
[402123534,1768531845139,-246.7,0.000291,7]
[402123535,1768531845148,-757.8,0.00029132,2]
[402123536,1768531845157,-502.0,0.00029753,2]
[402123537,1768531845166,-150.0,0.000299,30]
[402123538,1768531845175,-776.58983529,0.00029945,2]
[402123539,1768531845184,-1000.0,0.0003,2]
[402123540,1768531845193,-174.51123852,0.000301,2]
[402123541,1768531845202,-600.0,0.00030137,120]
[402123542,1768531845211,-200.0,0.00030137,2]
[402123543,1768531845220,-600.0,0.00030411,120]
[402123544,1768531845230,-200.0,0.00030438,2]
[402123545,1768531845239,-253.0509222,0.00030615,2]
[402123546,1768531845248,-600.0,0.00030685,120]
[402123547,1768531845257,-200.0,0.00030743,2]
[402123548,1768531845266,-600.0,0.00030959,120]
[402123549,1768531845275,-600.0,0.00031233,120]
[402123550,1768531845284,-152.0,0.00031305,3]
[402123551,1768531845294,-757.8,0.00031309,2]
[402123552,1768531845302,-151.0,0.00031309,31]
[402123553,1768531845311,-600.0,0.00031507,120]
[402123554,1768531845320,-150.0,0.00031739,2]
[402123555,1768531845329,-600.0,0.00031781,120]
[402123556,1768531845339,-216.73549128,0.00031993,2]
[402123557,1768531845347,-22900.0,0.00032,2]
[402123558,1768531845356,-1000.0,0.00032,120]
[402123559,1768531845365,-1155.0,0.00032,120]
[402123560,1768531845374,-600.0,0.00032055,120]
[402123561,1768531845383,-193.6313068,0.000321,30]
[402123562,1768531845392,-600.0,0.00032329,120]
[402123563,1768531845402,-600.0,0.00032603,120]
[402123564,1768531845411,-776.58983529,0.00032868,2]
[402123565,1768531845420,-5738.0,0.00032875,2]
[402123566,1768531845429,-600.0,0.00032877,120]
[402123567,1768531845438,-500.0,0.00032877,2]
[402123568,1768531845447,-500.0,0.00032932,2]
[402123569,1768531845456,-362.81384374,0.00032987,2]
[402123571,1768531845465,-600.0,0.00033151,120]
[402123572,1768531845474,-600.0,0.00033425,120]
[402123574,1768531845483,-757.8,0.00033485,5]
[402123576,1768531845493,-1000.0,0.0003358,2]
[402123577,1768531845502,-600.0,0.00033699,120]
[402123579,1768531845511,-991.31,0.000337,10]
[402123581,1768531845520,-500.0,0.00033965,7]
[402123583,1768531845529,-600.0,0.00033973,120]
[402123585,1768531845539,-152.0,0.00034,120]
[402123587,1768531845548,-1000.0,0.0003407,2]
[402123589,1768531845557,-500.0,0.00034077,7]
[402123591,1768531845567,-500.0,0.00034094,7]
[402123593,1768531845576,-1000.0,0.00034114,2]
[402123595,1768531845585,-600.0,0.00034124,7]
[402123597,1768531845595,-1000.0,0.00034143,2]
[402123599,1768531845604,-1000.0,0.00034171,2]
[402123601,1768531845613,-1000.0,0.00034172,2]
[402123603,1768531845622,-600.0,0.00034225,7]
[402123605,1768531845631,-500.0,0.00034229,7]
[402123607,1768531845641,-600.0,0.00034247,120]
[402123609,1768531845649,-1000.0,0.00034293,2]
[402123611,1768531845659,-1000.0,0.00034326,2]
[402123613,1768531845669,-1000.0,0.00034382,2]
[402123615,1768531845679,-1000.0,0.00034399,2]
[402123617,1768531845687,-1000.0,0.00034412,2]
[402123619,1768531845697,-253.0509222,0.00034436,2]
[402123621,1768531845706,-1000.0,0.0003446,2]
[402123623,1768531845716,-1000.0,0.00034465,2]
[402123625,1768531845725,-1000.0,0.00034481,2]
[402123627,1768531845734,-1000.0,0.00034495,2]
[402123629,1768531845744,-600.0,0.00034519,7]
[402123631,1768531845753,-600.0,0.00034521,120]
[402123633,1768531845762,-1000.0,0.00034525,2]
[402123636,1768531845770,-1000.0,0.00034531,2]
[402123639,1768531845779,-1000.0,0.00034597,2]
[402123641,1768531845788,-1000.0,0.00034604,2]
[402123643,1768531845797,-1000.0,0.00034649,2]
[402123645,1768531845806,-600.0,0.00034662,7]
[402123648,1768531845815,-176.23844907,0.00034729,7]
[402123651,1768531845824,-150.1,0.00034731,3]
[402123653,1768531845833,-150.1,0.00034731,3]
[402123655,1768531845841,-152.89489178,0.00034731,3]
[402123657,1768531845850,-1000.0,0.00034733,2]
[402123659,1768531845859,-600.0,0.00034743,7]
[402123661,1768531845868,-1000.0,0.00034791,2]
[402123662,1768531845878,-600.0,0.00034795,120]
[402123664,1768531845886,-1997.01291093,0.00034813,2]
[402123666,1768531845896,-600.0,0.00034831,7]
[402123668,1768531845905,-1000.0,0.00034841,2]
[402123670,1768531845914,-1000.0,0.00034877,2]
[402123672,1768531845924,-700.0,0.00034881,14]
[402123674,1768531845937,-500.0,0.00034881,14]
[402123676,1768531845947,-1600.0,0.00034881,14]
[402123678,1768531845956,-409.96687693,0.00034892,2]
[402123680,1768531845965,-600.0,0.00034911,7]
[402123682,1768531845974,-600.0,0.0003493,7]
[402123684,1768531845983,-1000.0,0.00034974,2]
[402123686,1768531845992,-1000.0,0.0003499,2]
[402123688,1768531846002,-500.0,0.00034995,7]
[402123690,1768531846011,-500.0,0.00035,120]
[402123692,1768531846021,-1161.099999,0.00035,120]
[402123694,1768531846031,-1000.0,0.00035006,2]
[402123696,1768531846040,-501.01331058,0.00035007,30]
[402123698,1768531846050,-1000.0,0.00035033,2]
[402123700,1768531846059,-1000.0,0.00035038,2]
[402123702,1768531846068,-1000.0,0.00035056,2]
[402123703,1768531846077,-152.7,0.00035062,2]
[402123705,1768531846086,-1129.85,0.00035062,2]
[402123707,1768531846095,-358.73,0.00035062,2]
[402123709,1768531846107,-177.01,0.00035062,2]
[402123711,1768531846116,-150.0,0.00035062,2]
[402123713,1768531846125,-152.53,0.00035062,2]
[402123715,1768531846134,-480.01,0.00035062,2]
[402123717,1768531846145,-159.19,0.00035062,2]
[402123719,1768531846155,-150.0,0.00035062,2]
[402123721,1768531846164,-467.43,0.00035062,2]
[402123723,1768531846173,-600.0,0.00035069,120]
[402123725,1768531846182,-1000.0,0.00035182,2]
[402123727,1768531846191,-500.0,0.00035206,30]
[402123729,1768531846201,-1000.0,0.00035208,2]
[402123731,1768531846211,-152.0,0.00035217,4]
[402123733,1768531846220,-286.8589,0.0003522,30]
[402123735,1768531846228,-600.0,0.00035225,30]
[402123737,1768531846238,-1000.0,0.00035271,2]
[402123739,1768531846247,-1000.0,0.00035272,2]
[402123741,1768531846256,-1000.0,0.00035282,2]
[402123743,1768531846265,-500.0,0.00035291,30]
[402123745,1768531846274,-1000.0,0.00035295,2]
[402123747,1768531846284,-500.0,0.0003531,30]
[402123749,1768531846293,-1000.0,0.00035317,2]
[402123751,1768531846304,-600.0,0.00035334,30]
[402123753,1768531846313,-600.0,0.00035342,120]
[402123755,1768531846327,-1000.0,0.00035345,2]
[402123757,1768531846336,-800.39462936,0.00035362,2]
[402123759,1768531846346,-1000.0,0.00035376,2]
[402123761,1768531846355,-500.0,0.00035382,30]
[402123763,1768531846364,-1041.86673573,0.00035382,2]
[402123764,1768531846375,-600.0,0.00035393,30]
[402123766,1768531846390,-1000.0,0.00035393,2]
[402123768,1768531846406,-500.0,0.00035419,30]
[402123770,1768531846416,-1000.0,0.00035438,2]
[402123772,1768531846426,-150.0,0.00035439,20]
[402123774,1768531846436,-151.0,0.0003544,31]
[402123776,1768531846445,-154.006185,0.0003544,31]
[402123778,1768531846454,-150.0,0.00035463,2]
[402123780,1768531846463,-300.0,0.000355,120]
[402123782,1768531846472,-300.0,0.000355,120]
[402123784,1768531846481,-300.0,0.000355,120]
[402123786,1768531846490,-300.0,0.000355,120]
[402123788,1768531846499,-300.0,0.000355,120]
[402123790,1768531846507,-216.73549128,0.00035516,2]
[402123792,1768531846515,-3078.73729356,0.00035525,2]
[402123794,1768531846524,-1000.0,0.00035528,2]
[402123796,1768531846532,-1000.0,0.0003553,2]
[402123798,1768531846540,-500.0,0.00035535,30]
[402123800,1768531846548,-1000.0,0.00035545,2]
[402123802,1768531846557,-1000.0,0.00035579,2]
[402123804,1768531846566,-1000.0,0.00035588,2]
[402123806,1768531846585,-155.31781772,0.00035613,14]
[402123808,1768531846595,-151.0,0.00035616,10]
[402123809,1768531846604,-286.613391,0.00035616,10]
[402123811,1768531846613,-167.22803,0.00035616,10]
[402123813,1768531846622,-157.162011,0.00035616,10]
[402123815,1768531846631,-187.768818,0.00035616,10]
[402123817,1768531846641,-500.0,0.00035616,10]
[402123819,1768531846651,-500.0,0.00035616,10]
[402123821,1768531846660,-500.0,0.00035616,10]
[402123823,1768531846670,-890.89,0.00035616,10]
[402123825,1768531846679,-504.68868501,0.00035616,10]
[402123827,1768531846688,-500.0,0.00035616,10]
[402123829,1768531846697,-500.0,0.00035616,10]
[402123831,1768531846706,-500.86300642,0.00035616,10]
[402123833,1768531846715,-529.74657878,0.00035616,10]
[402123835,1768531846724,-474.32466381,0.00035616,7]
[402123837,1768531846733,-691.87,0.00035616,10]
[402123839,1768531846742,-802.54,0.00035616,10]
[402123841,1768531846751,-500.0,0.00035616,10]
[402123843,1768531846760,-694.91,0.00035616,10]
[402123845,1768531846769,-500.0,0.00035616,10]
[402123847,1768531846778,-795.96,0.00035616,10]
[402123849,1768531846787,-711.58,0.00035616,10]
[402123851,1768531846796,-500.0,0.00035616,10]
[402123853,1768531846805,-500.0,0.00035616,10]
[402123855,1768531846814,-500.0,0.00035616,10]
[402123857,1768531846823,-500.0,0.00035616,10]
[402123859,1768531846832,-1497.97,0.00035616,10]
[402123861,1768531846841,-505.64521364,0.00035616,10]
[402123863,1768531846850,-505.8764591,0.00035616,10]
[402123865,1768531846859,-505.44035984,0.00035616,10]
[402123866,1768531846868,-827.14,0.00035616,10]
[402123868,1768531846876,-500.0,0.00035616,10]
[402123870,1768531846886,-591.23,0.00035616,10]
[402123872,1768531846895,-797.95,0.00035616,10]
[402123874,1768531846904,-1296.7,0.00035616,10]
[402123876,1768531846914,-691.11,0.00035616,10]
[402123878,1768531846923,-500.0,0.00035616,10]
[402123880,1768531846935,-550.72,0.00035616,10]
[402123881,1768531846944,-500.0,0.00035616,10]
[402123883,1768531846953,-1583.14,0.00035616,10]
[402123885,1768531846963,-502.68613163,0.00035616,10]
[402123887,1768531846972,-500.0,0.00035616,10]
[402123889,1768531846982,-500.0,0.00035616,10]
[402123891,1768531846991,-501.78031641,0.00035616,10]
[402123892,1768531847000,-500.0,0.00035616,10]
[402123894,1768531847011,-1278.53,0.00035616,10]
[402123896,1768531847020,-500.0,0.00035616,10]
[402123898,1768531847029,-505.53893272,0.00035616,10]
[402123900,1768531847038,-896.53,0.00035616,10]
[402123902,1768531847048,-505.25965085,0.00035616,10]
[402123904,1768531847058,-500.0,0.00035616,10]
[402123906,1768531847067,-575.32,0.00035616,10]
[402123908,1768531847076,-500.0,0.00035616,10]
[402123910,1768531847084,-506.40623358,0.00035616,10]
[402123911,1768531847092,-500.0,0.00035616,10]
[402123913,1768531847101,-506.17707409,0.00035616,10]
[402123915,1768531847110,-500.0,0.00035616,10]
[402123917,1768531847120,-500.0,0.00035616,10]
[402123919,1768531847129,-500.0,0.00035616,10]
[402123921,1768531847138,-501.05044584,0.00035616,10]
[402123923,1768531847147,-500.0,0.00035616,10]
[402123925,1768531847156,-500.0,0.00035616,10]
[402123927,1768531847165,-537.99866634,0.00035616,10]
[402123928,1768531847174,-500.0,0.00035616,10]
[402123930,1768531847183,-502.46784307,0.00035616,10]
[402123932,1768531847194,-500.86410254,0.00035616,10]
[402123934,1768531847203,-500.0,0.00035616,10]
[402123936,1768531847212,-345.28036249,0.00035616,10]
[402123938,1768531847221,-509.75630019,0.00035616,10]
[402123940,1768531847230,-507.38008876,0.00035616,10]
[402123942,1768531847239,-519.14124608,0.00035616,10]
[402123944,1768531847248,-290.76442045,0.00035616,10]
[402123946,1768531847256,-500.0,0.00035616,10]
[402123948,1768531847265,-501.5933968,0.00035616,10]
[402123950,1768531847274,-508.67255344,0.00035616,10]
[402123952,1768531847283,-511.83230111,0.00035616,120]
[402123954,1768531847292,-543.47,0.00035616,10]
[402123956,1768531847301,-500.0,0.00035616,10]
[402123958,1768531847309,-500.0,0.00035616,10]
[402123960,1768531847321,-500.0,0.00035616,10]
[402123962,1768531847330,-500.0,0.00035616,10]
[402123964,1768531847338,-1183.55,0.00035616,10]
[402123965,1768531847348,-591.94,0.00035616,10]
[402123967,1768531847356,-507.0556666,0.00035616,10]
[402123969,1768531847365,-754.12,0.00035616,10]
[402123971,1768531847374,-500.0,0.00035616,10]
[402123973,1768531847383,-1098.04,0.00035616,10]
[402123975,1768531847392,-653.73,0.00035616,10]
[402123977,1768531847402,-504.0156931,0.00035616,10]
[402123979,1768531847410,-566.46,0.00035616,10]
[402123981,1768531847420,-500.0,0.00035616,10]
[402123983,1768531847429,-500.0,0.00035616,10]
[402123985,1768531847439,-867.35,0.00035616,10]
[402123987,1768531847447,-500.0,0.00035616,10]
[402123988,1768531847456,-708.53,0.00035616,10]
[402123990,1768531847465,-594.69,0.00035616,10]
[402123992,1768531847475,-507.71499548,0.00035616,10]
[402123994,1768531847484,-500.0,0.00035616,10]
[402123996,1768531847494,-506.95605977,0.00035616,10]
[402123998,1768531847504,-503.45,0.00035616,10]
[402124000,1768531847513,-500.0,0.00035616,10]
[402124002,1768531847523,-630.74,0.00035616,10]
[402124004,1768531847533,-770.26,0.00035616,10]
[402124006,1768531847542,-500.0,0.00035616,10]
[402124008,1768531847551,-500.0,0.00035616,10]
[402124010,1768531847560,-500.0,0.00035616,10]
[402124012,1768531847569,-503.62805031,0.00035616,10]
[402124014,1768531847579,-619.7,0.00035616,10]
[402124016,1768531847588,-559.63,0.00035616,10]
[402124018,1768531847598,-530.4,0.00035616,10]
[402124020,1768531847608,-351.33690909,0.00035616,10]
[402124022,1768531847617,-1009.84,0.00035616,10]
[402124024,1768531847628,-500.0,0.00035616,10]
[402124025,1768531847638,-506.77937267,0.00035616,10]
[402124028,1768531847648,-500.0,0.00035616,10]
[402124029,1768531847659,-500.0,0.00035616,10]
[402124031,1768531847670,-500.0,0.00035616,10]
[402124052,1768531847910,-500.0,0.00035616,10]
[402124053,1768531847920,-505.28716417,0.00035616,10]
[402124054,1768531847931,-500.0,0.00035616,10]
[402124055,1768531847942,-500.0,0.00035616,10]
[402124056,1768531847951,-500.0,0.00035616,10]
[402124057,1768531847961,-797.28,0.00035616,10]
[402124058,1768531847970,-528.53407147,0.00035616,10]
[402124059,1768531847980,-500.0,0.00035616,10]
[402124060,1768531847989,-500.0,0.00035616,10]
[402124061,1768531847998,-500.0,0.00035616,10]
[402124062,1768531848008,-500.0,0.00035616,10]
[402124063,1768531848018,-500.0,0.00035616,10]
[402124065,1768531848027,-453.81669589,0.00035616,10]
[402124067,1768531848036,-500.0,0.00035616,10]
[402124069,1768531848045,-500.0,0.00035616,10]
[402124071,1768531848054,-663.6,0.00035616,10]
[402124073,1768531848063,-500.0,0.00035616,10]
[402124075,1768531848072,-500.0,0.00035616,10]
[402124077,1768531848081,-502.04370716,0.00035616,10]
[402124079,1768531848091,-521.03,0.00035616,10]
[402124081,1768531848100,-500.0,0.00035616,10]
[402124083,1768531848109,-502.5432709,0.00035616,10]
[402124085,1768531848118,-500.0,0.00035616,10]
[402124087,1768531848127,-502.01267079,0.00035616,10]
[402124089,1768531848136,-501.69661951,0.00035616,10]
[402124091,1768531848145,-278.31179941,0.00035616,10]
[402124093,1768531848154,-500.0,0.00035616,10]
[402124095,1768531848163,-903.43,0.00035616,10]
[402124097,1768531848172,-500.0,0.00035616,10]
[402124099,1768531848181,-500.0,0.00035616,10]
[402124101,1768531848191,-500.0,0.00035616,10]
[402124103,1768531848200,-754.81,0.00035616,10]
[402124105,1768531848210,-539.7551802,0.00035616,10]
[402124107,1768531848219,-567.06,0.00035616,10]
[402124109,1768531848229,-510.96516392,0.00035616,10]
[402124111,1768531848238,-500.0,0.00035616,10]
[402124113,1768531848248,-500.0,0.00035616,10]
[402124115,1768531848257,-500.0,0.00035616,10]
[402124117,1768531848266,-500.0,0.00035616,10]
[402124119,1768531848275,-500.7358664,0.00035616,10]
[402124121,1768531848285,-368.78012828,0.00035616,10]
[402124123,1768531848296,-500.0,0.00035616,10]
[402124125,1768531848307,-500.0,0.00035616,10]
[402124127,1768531848317,-507.26,0.00035616,10]
[402124129,1768531848327,-1074.27,0.00035616,10]
[402124131,1768531848337,-944.72,0.00035616,10]
[402124133,1768531848347,-500.0,0.00035616,10]
[402124135,1768531848356,-573.27,0.00035616,10]
[402124137,1768531848365,-523.64,0.00035616,10]
[402124139,1768531848374,-502.92510673,0.00035616,10]
[402124141,1768531848383,-500.0,0.00035616,10]
[402124143,1768531848393,-500.0,0.00035616,10]
[402124145,1768531848402,-500.0,0.00035616,10]
[402124147,1768531848411,-500.0,0.00035616,10]
[402124149,1768531848422,-502.32953563,0.00035616,10]
[402124151,1768531848431,-500.0,0.00035616,10]
[402124153,1768531848441,-500.0,0.00035616,10]
[402124155,1768531848451,-500.0,0.00035616,10]
[402124157,1768531848460,-844.67,0.00035616,10]
[402124159,1768531848470,-507.50833589,0.00035616,10]
[402124161,1768531848480,-500.0,0.00035616,10]
[402124164,1768531848490,-500.0,0.00035616,10]
[402124166,1768531848499,-505.22894048,0.00035616,10]
[402124168,1768531848508,-500.0,0.00035616,10]
[402124170,1768531848519,-710.69,0.00035616,10]
[402124172,1768531848529,-500.0,0.00035616,10]
[402124174,1768531848539,-500.0,0.00035616,10]
[402124176,1768531848549,-734.22,0.00035616,10]
[402124178,1768531848560,-500.0,0.00035616,10]
[402124180,1768531848570,-500.0,0.00035616,10]
[402124182,1768531848580,-500.0,0.00035616,10]
[402124184,1768531848589,-500.0,0.00035616,10]
[402124186,1768531848599,-500.0,0.00035616,10]
[402124188,1768531848609,-500.0,0.00035616,10]
[402124190,1768531848619,-500.0,0.00035616,10]
[402124192,1768531848629,-500.0,0.00035616,10]
[402124195,1768531848639,-500.0,0.00035616,10]
[402124197,1768531848649,-500.0,0.00035616,10]
[402124198,1768531848658,-593.33,0.00035616,10]
[402124201,1768531848668,-785.73,0.00035616,10]
[402124203,1768531848677,-505.37480188,0.00035616,10]
[402124205,1768531848687,-270.01176104,0.00035616,10]
[402124207,1768531848696,-500.0,0.00035616,120]
[402124209,1768531848706,-500.0,0.00035616,10]
[402124211,1768531848715,-500.0,0.00035616,10]
[402124213,1768531848724,-501.79441245,0.00035616,10]
[402124215,1768531848733,-500.0,0.00035616,10]
[402124217,1768531848742,-504.14072538,0.00035616,10]
[402124219,1768531848751,-513.83112771,0.00035616,10]